Workbook

Sheet Sheet1
C1: FAMILY BUDGET PLANNER | H1: By: www.ExcelTemplateSource.com
C3: BALANCE | D3: 0 | E3: =+D3+D8 -> 1543.49 | F3: =+E3+E8 -> 3086.98 | G3: =+F3+F8 -> 4630.47 | H3: =+G3+G8 -> 6173.96 | I3: =+H3+H8 -> 7717.45 | J3: =+I3+I8 -> 9260.94 | K3: =+J3+J8 -> 10804.43 | L3: =+K3+K8 -> 12347.92 | M3: =+L3+L8 -> 13891.41 | N3: =+M3+M8 -> 15434.9 | O3: =+N3+N8 -> 16978.39
A5: SUMMARY
C6: Total Income | D6: =sum(D14) -> 10085.74 | E6: =sum(E14) -> 10085.74 | F6: =sum(F14) -> 10085.74 | G6: =sum(G14) -> 10085.74 | H6: =sum(H14) -> 10085.74 | I6: =sum(I14) -> 10085.74 | J6: =sum(J14) -> 10085.74 | K6: =sum(K14) -> 10085.74 | L6: =sum(L14) -> 10085.74 | M6: =sum(M14) -> 10085.74 | N6: =sum(N14) -> 10085.74 | O6: =sum(O14) -> 10085.74 | P6: =SUM(D6:O6) -> 121028.88
C7: Total Expenditures | D7: =D59 -> 8542.25 | E7: =E59 -> 8542.25 | F7: =F59 -> 8542.25 | G7: =G59 -> 8542.25 | H7: =H59 -> 8542.25 | I7: =I59 -> 8542.25 | J7: =J59 -> 8542.25 | K7: =K59 -> 8542.25 | L7: =L59 -> 8542.25 | M7: =M59 -> 8542.25 | N7: =N59 -> 8542.25 | O7: =O59 -> 8542.25 | P7: =SUM(D7:O7) -> 102507
C8: Income - Expenditures | D8: =D6-D7 -> 1543.49 | E8: =E6-E7 -> 1543.49 | F8: =F6-F7 -> 1543.49 | G8: =G6-G7 -> 1543.49 | H8: =H6-H7 -> 1543.49 | I8: =I6-I7 -> 1543.49 | J8: =J6-J7 -> 1543.49 | K8: =K6-K7 -> 1543.49 | L8: =L6-L7 -> 1543.49 | M8: =M6-M7 -> 1543.49 | N8: =N6-N7 -> 1543.49 | O8: =O6-O7 -> 1543.49 | P8: =SUM(D8:O8) -> 18521.88
D9: JAN | E9: FEB | F9: MAR | G9: APR | H9: MAY | I9: JUN | J9: JUL | K9: AUG | L9: SEP | M9: OCT | N9: NOV | O9: DEC | P9: TOTALS
A10: INCOME
C11: Take-home pay (Hers) | P11: =SUM(D11:O11) -> 0
C12: Take-home pay (His) | D12: =4442.87*2 -> 8885.74 | E12: =4442.87*2 -> 8885.74 | F12: =4442.87*2 -> 8885.74 | G12: =4442.87*2 -> 8885.74 | H12: =4442.87*2 -> 8885.74 | I12: =4442.87*2 -> 8885.74 | J12: =4442.87*2 -> 8885.74 | K12: =4442.87*2 -> 8885.74 | L12: =4442.87*2 -> 8885.74 | M12: =4442.87*2 -> 8885.74 | N12: =4442.87*2 -> 8885.74 | O12: =4442.87*2 -> 8885.74 | P12: =SUM(D12:O12) -> 106628.88
C13: Other Income | D13: 1200 | E13: 1200 | F13: 1200 | G13: 1200 | H13: 1200 | I13: 1200 | J13: 1200 | K13: 1200 | L13: 1200 | M13: 1200 | N13: 1200 | O13: 1200 | P13: =SUM(D13:O13) -> 14400
A14: TOTAL INCOME | D14: =SUM(D11:D13) -> 10085.74 | E14: =SUM(E11:E13) -> 10085.74 | F14: =SUM(F11:F13) -> 10085.74 | G14: =SUM(G11:G13) -> 10085.74 | H14: =SUM(H11:H13) -> 10085.74 | I14: =SUM(I11:I13) -> 10085.74 | J14: =SUM(J11:J13) -> 10085.74 | K14: =SUM(K11:K13) -> 10085.74 | L14: =SUM(L11:L13) -> 10085.74 | M14: =SUM(M11:M13) -> 10085.74 | N14: =SUM(N11:N13) -> 10085.74 | O14: =SUM(O11:O13) -> 10085.74 | P14: =SUM(D14:O14) -> 121028.88
A16: EXPENDITURES
C17: Mortgage | D17: 2600 | E17: 2600 | F17: 2600 | G17: 2600 | H17: 2600 | I17: 2600 | J17: 2600 | K17: 2600 | L17: 2600 | M17: 2600 | N17: 2600 | O17: 2600 | P17: =SUM(D17:O17) -> 31200
B18: Insurance Premiums
C19: Auto | D19: 65 | E19: 65 | F19: 65 | G19: 65 | H19: 65 | I19: 65 | J19: 65 | K19: 65 | L19: 65 | M19: 65 | N19: 65 | O19: 65 | P19: =SUM(D19:O19) -> 780
C20: Life | D20: 45 | E20: 45 | F20: 45 | G20: 45 | H20: 45 | I20: 45 | J20: 45 | K20: 45 | L20: 45 | M20: 45 | N20: 45 | O20: 45 | P20: =sum(D20:O20) -> 540
B22: Misc Variable
C23: Food | D23: 1600 | E23: 1600 | F23: 1600 | G23: 1600 | H23: 1600 | I23: 1600 | J23: 1600 | K23: 1600 | L23: 1600 | M23: 1600 | N23: 1600 | O23: 1600 | P23: =SUM(D23:O23) -> 19200
C24: Gasoline | D24: 450 | E24: 450 | F24: 450 | G24: 450 | H24: 450 | I24: 450 | J24: 450 | K24: 450 | L24: 450 | M24: 450 | N24: 450 | O24: 450 | P24: =SUM(D24:O24) -> 5400
C25: Car Service/Maint | D25: 75 | E25: 75 | F25: 75 | G25: 75 | H25: 75 | I25: 75 | J25: 75 | K25: 75 | L25: 75 | M25: 75 | N25: 75 | O25: 75 | P25: =SUM(D25:O25) -> 900
C26: Home Running Expensis | P26: =SUM(D26:O26) -> 0
C27: Dinning Out | D27: 250 | E27: 250 | F27: 250 | G27: 250 | H27: 250 | I27: 250 | J27: 250 | K27: 250 | L27: 250 | M27: 250 | N27: 250 | O27: 250 | P27: =SUM(D27:O27) -> 3000
C28: Medical | D28: 100 | E28: 100 | F28: 100 | G28: 100 | H28: 100 | I28: 100 | J28: 100 | K28: 100 | L28: 100 | M28: 100 | N28: 100 | O28: 100 | P28: =SUM(D28:O28) -> 1200
A29: Variable Expenditures
B30: Fuel and utilities
C31: Electric + Water | D31: 210 | E31: 210 | F31: 210 | G31: 210 | H31: 210 | I31: 210 | J31: 210 | K31: 210 | L31: 210 | M31: 210 | N31: 210 | O31: 210 | P31: =SUM(D31:O31) -> 2520
C32: Internet | D32: 80 | E32: 80 | F32: 80 | G32: 80 | H32: 80 | I32: 80 | J32: 80 | K32: 80 | L32: 80 | M32: 80 | N32: 80 | O32: 80 | P32: =SUM(D32:O32) -> 960
C33: Home Phone | D33: 3.75 | E33: 3.75 | F33: 3.75 | G33: 3.75 | H33: 3.75 | I33: 3.75 | J33: 3.75 | K33: 3.75 | L33: 3.75 | M33: 3.75 | N33: 3.75 | O33: 3.75 | P33: =SUM(D33:O33) -> 45
C34: Trash Pickup | D34: 21 | E34: 21 | F34: 21 | G34: 21 | H34: 21 | I34: 21 | J34: 21 | K34: 21 | L34: 21 | M34: 21 | N34: 21 | O34: 21 | P34: =SUM(D34:O34) -> 252
C35: Satellite/Cable | D35: 16 | E35: 16 | F35: 16 | G35: 16 | H35: 16 | I35: 16 | J35: 16 | K35: 16 | L35: 16 | M35: 16 | N35: 16 | O35: 16 | P35: =SUM(D35:O35) -> 192
C36: Cell Phones | D36: 210 | E36: 210 | F36: 210 | G36: 210 | H36: 210 | I36: 210 | J36: 210 | K36: 210 | L36: 210 | M36: 210 | N36: 210 | O36: 210 | P36: =SUM(D36:O36) -> 2520
C37: Propane | D37: 150 | E37: 150 | F37: 150 | G37: 150 | H37: 150 | I37: 150 | J37: 150 | K37: 150 | L37: 150 | M37: 150 | N37: 150 | O37: 150 | P37: =SUM(D37:O37) -> 1800
B38: Investments
C39: His Roth IRA/401K | D39: 75 | E39: 75 | F39: 75 | G39: 75 | H39: 75 | I39: 75 | J39: 75 | K39: 75 | L39: 75 | M39: 75 | N39: 75 | O39: 75 | P39: =SUM(D39:O39) -> 900
C40: Her Roth IRA/401K | D40: 75 | E40: 75 | F40: 75 | G40: 75 | H40: 75 | I40: 75 | J40: 75 | K40: 75 | L40: 75 | M40: 75 | N40: 75 | O40: 75 | P40: =SUM(D40:O40) -> 900
C41: Child 1 - 529 Account | D41: 75 | E41: 75 | F41: 75 | G41: 75 | H41: 75 | I41: 75 | J41: 75 | K41: 75 | L41: 75 | M41: 75 | N41: 75 | O41: 75 | P41: =SUM(D41:O41) -> 900
C42: Child 2 - 529 Account | D42: 75 | E42: 75 | F42: 75 | G42: 75 | H42: 75 | I42: 75 | J42: 75 | K42: 75 | L42: 75 | M42: 75 | N42: 75 | O42: 75 | P42: =SUM(D42:O42) -> 900
C43: Child 3 - 529 Account | D43: 75 | E43: 75 | F43: 75 | G43: 75 | H43: 75 | I43: 75 | J43: 75 | K43: 75 | L43: 75 | M43: 75 | N43: 75 | O43: 75 | P43: =SUM(D43:O43) -> 900
P44: =SUM(D44:O44) -> 0
B45: Pocket Money
C46: Matt Lunches | D46: 130 | E46: 130 | F46: 130 | G46: 130 | H46: 130 | I46: 130 | J46: 130 | K46: 130 | L46: 130 | M46: 130 | N46: 130 | O46: 130 | P46: =SUM(D46:O46) -> 1560
C47: Jocelyn Lunches | D47: 65 | E47: 65 | F47: 65 | G47: 65 | H47: 65 | I47: 65 | J47: 65 | K47: 65 | L47: 65 | M47: 65 | N47: 65 | O47: 65 | P47: =SUM(D47:O47) -> 780
C48: Matt Spending | D48: 300 | E48: 300 | F48: 300 | G48: 300 | H48: 300 | I48: 300 | J48: 300 | K48: 300 | L48: 300 | M48: 300 | N48: 300 | O48: 300 | P48: =SUM(D48:O48) -> 3600
C49: Babysitting | D49: 120 | E49: 120 | F49: 120 | G49: 120 | H49: 120 | I49: 120 | J49: 120 | K49: 120 | L49: 120 | M49: 120 | N49: 120 | O49: 120 | P49: =SUM(D49:O49) -> 1440
P50: =SUM(D50:O50) -> 0
C51: Hers | D51: 300 | E51: 300 | F51: 300 | G51: 300 | H51: 300 | I51: 300 | J51: 300 | K51: 300 | L51: 300 | M51: 300 | N51: 300 | O51: 300 | P51: =SUM(D51:O51) -> 3600
C52: Child Allowance | P52: =SUM(D52:O52) -> 0
B53: Misc Expensis
C54: Rental Property Payment | D54: 1200 | E54: 1200 | F54: 1200 | G54: 1200 | H54: 1200 | I54: 1200 | J54: 1200 | K54: 1200 | L54: 1200 | M54: 1200 | N54: 1200 | O54: 1200 | P54: =SUM(D54:O54) -> 14400
C55: Rental Prop Warranty | D55: 40 | E55: 40 | F55: 40 | G55: 40 | H55: 40 | I55: 40 | J55: 40 | K55: 40 | L55: 40 | M55: 40 | N55: 40 | O55: 40 | P55: =SUM(D55:O55) -> 480
C56: Rental Prop Homeowners Assoc | D56: 36.5 | E56: 36.5 | F56: 36.5 | G56: 36.5 | H56: 36.5 | I56: 36.5 | J56: 36.5 | K56: 36.5 | L56: 36.5 | M56: 36.5 | N56: 36.5 | O56: 36.5 | P56: =SUM(D56:O56) -> 438
C57: Other Expensis | D57: 100 | E57: 100 | F57: 100 | G57: 100 | H57: 100 | I57: 100 | J57: 100 | K57: 100 | L57: 100 | M57: 100 | N57: 100 | O57: 100 | P57: =SUM(D57:O57) -> 1200
P58: =SUM(D58:O58) -> 0
A59: TOTAL EXPENDITURES | D59: =SUM(D17:D58) -> 8542.25 | E59: =SUM(E17:E58) -> 8542.25 | F59: =SUM(F17:F58) -> 8542.25 | G59: =SUM(G17:G58) -> 8542.25 | H59: =SUM(H17:H58) -> 8542.25 | I59: =SUM(I17:I58) -> 8542.25 | J59: =SUM(J17:J58) -> 8542.25 | K59: =SUM(K17:K58) -> 8542.25 | L59: =SUM(L17:L58) -> 8542.25 | M59: =SUM(M17:M58) -> 8542.25 | N59: =SUM(N17:N58) -> 8542.25 | O59: =SUM(O17:O58) -> 8542.25 | P59: =SUM(D59:O59) -> 102507

Sheet Sheet2
B1: Rental Property Budget Planner | H1: By: www.ExcelTemplateSource.com
A3: BALANCE | D3: 0 | E3: =+D3+D8 -> 231.5 | F3: =+E3+E8 -> 464.33 | G3: =+F3+F8 -> 698.49 | H3: =+G3+G8 -> 933.98 | I3: =+H3+H8 -> 1170.8 | J3: =+I3+I8 -> 1408.95 | K3: =+J3+J8 -> 1648.43 | L3: =+K3+K8 -> 1889.24 | M3: =+L3+L8 -> 2131.38 | N3: =+M3+M8 -> 2374.85 | O3: =+N3+N8 -> 2619.65
A5: SUMMARY
C6: Total Income | D6: =D12 -> 1200 | E6: =E12 -> 1200 | F6: =F12 -> 1200 | G6: =G12 -> 1200 | H6: =H12 -> 1200 | I6: =I12 -> 1200 | J6: =J12 -> 1200 | K6: =K12 -> 1200 | L6: =L12 -> 1200 | M6: =M12 -> 1200 | N6: =N12 -> 1200 | O6: =O12 -> 1200 | P6: =SUM(D6:O6) -> 14400
C7: Total Expenditures | D7: =D24 -> 968.5 | E7: =E24 -> 967.17 | F7: =F24 -> 965.84 | G7: =G24 -> 964.51 | H7: =H24 -> 963.18 | I7: =I24 -> 961.85 | J7: =J24 -> 960.52 | K7: =K24 -> 959.19 | L7: =L24 -> 957.86 | M7: =M24 -> 956.53 | N7: =N24 -> 955.2 | O7: =O24 -> 953.87 | P7: =SUM(D7:O7) -> 11534.22
C8: Income - Expenditures | D8: =D6-D7 -> 231.5 | E8: =E6-E7 -> 232.83 | F8: =F6-F7 -> 234.16 | G8: =G6-G7 -> 235.49 | H8: =H6-H7 -> 236.82 | I8: =I6-I7 -> 238.15 | J8: =J6-J7 -> 239.48 | K8: =K6-K7 -> 240.81 | L8: =L6-L7 -> 242.14 | M8: =M6-M7 -> 243.47 | N8: =N6-N7 -> 244.8 | O8: =O6-O7 -> 246.13 | P8: =SUM(D8:O8) -> 2865.78
D9: JAN | E9: FEB | F9: MAR | G9: APR | H9: MAY | I9: JUN | J9: JUL | K9: AUG | L9: SEP | M9: OCT | N9: NOV | O9: DEC | P9: TOTALS
A10: INCOME
C11: Rental Income | D11: 1200 | E11: 1200 | F11: 1200 | G11: 1200 | H11: 1200 | I11: 1200 | J11: 1200 | K11: 1200 | L11: 1200 | M11: 1200 | N11: 1200 | O11: 1200 | P11: =SUM(D11:O11) -> 14400
A12: TOTAL INCOME | D12: =SUM(D11:D11) -> 1200 | E12: =SUM(E11:E11) -> 1200 | F12: =SUM(F11:F11) -> 1200 | G12: =SUM(G11:G11) -> 1200 | H12: =SUM(H11:H11) -> 1200 | I12: =SUM(I11:I11) -> 1200 | J12: =SUM(J11:J11) -> 1200 | K12: =SUM(K11:K11) -> 1200 | L12: =SUM(L11:L11) -> 1200 | M12: =SUM(M11:M11) -> 1200 | N12: =SUM(N11:N11) -> 1200 | O12: =SUM(O11:O11) -> 1200 | P12: =SUM(D12:O12) -> 14400
A14: EXPENDITURES
B15: Expendetures
C16: Home Owners Insurance | D16: 67 | E16: 67 | F16: 67 | G16: 67 | H16: 67 | I16: 67 | J16: 67 | K16: 67 | L16: 67 | M16: 67 | N16: 67 | O16: 67 | P16: =SUM(D16:O16) -> 804
C17: AHS | D17: 37.5 | E17: 37.5 | F17: 37.5 | G17: 37.5 | H17: 37.5 | I17: 37.5 | J17: 37.5 | K17: 37.5 | L17: 37.5 | M17: 37.5 | N17: 37.5 | O17: 37.5 | P17: =SUM(D17:O17) -> 450
C18: Home Owners Assoc | D18: 31 | E18: 31 | F18: 31 | G18: 31 | H18: 31 | I18: 31 | J18: 31 | K18: 31 | L18: 31 | M18: 31 | N18: 31 | O18: 31 | P18: =SUM(D18:O18) -> 372
C19: Repairs | D19: 150 | E19: 150 | F19: 150 | G19: 150 | H19: 150 | I19: 150 | J19: 150 | K19: 150 | L19: 150 | M19: 150 | N19: 150 | O19: 150 | P19: =SUM(D19:O19) -> 1800
C20: Upgrades/Refirbish | D20: 50 | E20: 50 | F20: 50 | G20: 50 | H20: 50 | I20: 50 | J20: 50 | K20: 50 | L20: 50 | M20: 50 | N20: 50 | O20: 50 | P20: =SUM(D20:O20) -> 600
C21: Property Taxes | D21: 208 | E21: 208 | F21: 208 | G21: 208 | H21: 208 | I21: 208 | J21: 208 | K21: 208 | L21: 208 | M21: 208 | N21: 208 | O21: 208 | P21: =SUM(D21:O21) -> 2496
C22: Interest | D22: 425 | E22: 423.67 | F22: 422.34 | G22: 421.01 | H22: 419.68 | I22: 418.35 | J22: 417.02 | K22: 415.69 | L22: 414.36 | M22: 413.03 | N22: 411.7 | O22: 410.37
C23: Miscellaneous | P23: =SUM(D23:O23) -> 0
A24: TOTAL EXPENDITURES | D24: =SUM(D15:D23) -> 968.5 | E24: =SUM(E15:E23) -> 967.17 | F24: =SUM(F15:F23) -> 965.84 | G24: =SUM(G15:G23) -> 964.51 | H24: =SUM(H15:H23) -> 963.18 | I24: =SUM(I15:I23) -> 961.85 | J24: =SUM(J15:J23) -> 960.52 | K24: =SUM(K15:K23) -> 959.19 | L24: =SUM(L15:L23) -> 957.86 | M24: =SUM(M15:M23) -> 956.53 | N24: =SUM(N15:N23) -> 955.2 | O24: =SUM(O15:O23) -> 953.87 | P24: =SUM(D24:O24) -> 11534.22

Sheet Sheet3
